Cogmind - Beta 16 @@@ ROGUE MODE // 2025.12.18 @ 22:26:36 Player: TheGamingJasper Result: Destroyed by S-27 Virus with Autogun Performance ------------- Evolutions (5) 2500 Regions Visited (7) 1400 Robots Destroyed (75) 375 Value Destroyed (2481) 2481 Prototype IDs (5) 100 Alien Tech Used (0) 0 Bonus (0) 0 TOTAL SCORE: 6856 Bonus ------- None Cogmind --------- Core Integrity 0/1000 Matter 232/300 Energy 100/100 System Corruption 8% Temperature Cool (0) Movement Core (50) Location -5/Factory Parts ------- > --- POWER (3) -------- (None) > --- PROPULSION (4) --- (None) > --- UTILITY (7) ------ (None) > --- WEAPON (3) ------- (None) > --- INVENTORY (5) ---- Thunder Leg Thunder Leg Plasma Cannon Peak State ------------ > --- POWER ------------ Light Nuclear Core Fission Core Fission Core > --- PROPULSION ------- Thunder Leg Medium Armored Exoskeleton > --- UTILITY ---------- Improved Heat Sink Advanced Targeting Computer > --- WEAPON ----------- Tesla Rifle Plasma Cannon Compact Ion Cannon > --- INVENTORY -------- Light Nuclear Core Improved Titanium Leg Thunder Leg Thunder Leg Plasma Cannon [Rating: 61] Favorites ----------- Power Light Nuclear Core Engine Improved Ion Engine Power Core Light Nuclear Core Propulsion Carbon-fiber Leg Leg Carbon-fiber Leg Wheel Wheel Flight Unit Xenon Bombardment Thruster Utility Heat Sink Device Heat Sink Storage Medium Battery Processor Advanced Targeting Computer Hackware Hacking Suite Protection Utility Shielding Weapon Advanced Beam Cannon Energy Gun Medium Laser Energy Cannon Advanced Beam Cannon Build | -11 -10 -9 -9 -8 -7 -6 -5 ------- Run | Yrd Mat Mat Sto Mat Fac Fac Fac Slots Evolved 10 | . . 2 . 2 2 2 2 Power 2 | . . . . 1 . . 1 Propulsion 2 | . . 2 . . . . . Utility 5 | . . . . 1 2 1 1 Weapon 1 | . . . . . . 1 . Parts Attached 82 | 3 5 9 4 17 31 7 6 Power 18 | 1 . . 1 5 7 2 2 Engine 6 | 1 . . 1 2 2 . . Core 12 | . . . . 3 5 2 2 Reactor . | . . . . . . . . Propulsion 30 | . 2 8 . 5 13 . 2 Treads . | . . . . . . . . Leg 26 | . 2 8 . 5 9 . 2 Wheel 3 | . . . . . 3 . . Hover . | . . . . . . . . Flight 1 | . . . . . 1 . . Utility 12 | . 2 . 1 3 4 2 . Device 7 | . . . 1 2 3 1 . Storage 2 | . . . . 1 1 . . Processor 1 | . . . . . . 1 . Hackware 1 | . 1 . . . . . . Protection 1 | . 1 . . . . . . Artifact . | . . . . . . . . Weapon 22 | 2 1 1 2 4 7 3 2 Energy Gun 15 | 2 1 1 . 2 6 1 2 Energy Cannon 7 | . . . 2 2 1 2 . Ballistic Gun . | . . . . . . . . Ballistic Cannon . | . . . . . . . . Launcher . | . . . . . . . . Special Weapon . | . . . . . . . . Impact Weapon . | . . . . . . . . Slashing Weapon . | . . . . . . . . Piercing Weapon . | . . . . . . . . Special Melee Weapon . | . . . . . . . . Unidentified Prototypes 5 | . . . 1 1 1 2 . Parts Lost 49 | . 1 . . 12 21 1 14 Power 14 | . . . . 4 6 . 4 Propulsion 13 | . . . . 4 7 . 2 Utility 10 | . . . . 2 4 1 3 Weapon 12 | . 1 . . 2 4 . 5 Highest Loss Streak 11 | . 1 . . 8 6 1 11 To Critical Strikes 1 | . . . . 1 . . . Average Backups 3 | 2 1 3 4 4 2 2 4 Power . | . 1 1 1 . . . . Propulsion 1 | 1 . . 1 1 . 1 2 Utility . | . . 1 1 . . . . Weapon 1 | . . . 1 2 1 1 1 Tool/Special . | . . . . . . . . Unused Backups 7 | . . . 1 . 2 . 4 Power 1 | . . . 1 . . . . Propulsion 4 | . . . . . 1 . 3 Utility . | . . . . . . . . Weapon 2 | . . . . . 1 . 1 Tool/Special . | . . . . . . . . Average Slot Usage (%) 74 | . 83 95 99 94 54 71 48 Engine 5 | . 14 11 11 8 1 . . Core 4 | . . . . 5 5 9 11 Leg 25 | . 27 39 43 35 13 26 11 Wheel 1 | . . . . . 3 . . Device 7 | . . . 8 13 6 10 4 Storage 5 | . . . . 9 8 4 . Hackware 3 | . 3 11 11 4 . . . Protection 1 | . 10 11 2 . . . . Energy Gun 10 | . 27 22 18 3 11 4 3 Energy Cannon 6 | . . . 3 14 2 13 8 Peak Build Rating 61 | 3 9 20 25 30 24 43 61 Average Rating 23 | 2 6 16 21 26 18 32 45 On Entrance 16 | . 3 9 20 25 10 20 43 Avg Prop Armor Cover (%) 22 | . . . . . 5 . 40 Naked Turns 2 | . . . . . . . 2 Heaviest Build 44 | 9 10 11 16 28 34 44 44 Greatest Support 73 | 3 20 60 60 60 50 50 73 Greatest Overweight (x) 6 | 2 . . . . 6 . . Average Overweight (x) . | 1 . . . . . . . Largest Inventory Capacity 8 | 5 5 5 5 5 8 8 5 Average Capacity 5 | 5 5 5 5 5 6 6 5 Most Carried 5 | 4 3 5 5 5 5 4 5 Average Carried 3 | 2 1 3 4 4 2 2 4 Final Capacity 8 | 5 5 5 5 5 8 5 5 Final Carried 5 | 3 3 4 5 4 1 2 3 Class Distribution -------------------- 55% | Mutant 32% | Scavenger-Mutant 6% | Gunner 4% | Scavenger-Gunner Dominant Class ---------------- Mutant | -10/Materials Mutant | -9/Materials Mutant | -9/Storage Mutant | -8/Materials Scavenger-Mutant | -7/Factory Scavenger-Gunner | -6/Factory Gunner | -5/Factory Resources | -11 -10 -9 -9 -8 -7 -6 -5 ----------- Run | Yrd Mat Mat Sto Mat Fac Fac Fac Matter Collected 946 | 159 108 46 122 165 300 . 46 Remotely . | . . . . . . . . Salvage Created 3594 | . 108 111 645 1017 1526 . 187 Parts 152 | . 9 5 25 50 56 . 7 Haulers Intercepted 5 | . . . 3 2 . . . Recyclers Shooed 2 | . . . 1 1 . . . Parts Field Recycled . | . . . . . . . . Retrieved Matter . | . . . . . . . . Parts Self-Destructed . | . . . . . . . . Prevented . | . . . . . . . . Parts Restored . | . . . . . . . . Kills | -11 -10 -9 -9 -8 -7 -6 -5 ------- Run | Yrd Mat Mat Sto Mat Fac Fac Fac Combat Hostiles Destroyed 59 | . 2 3 9 18 21 . 6 Guns 29 | . 2 2 6 1 17 . 1 Cannons 25 | . . . 3 15 3 . 4 Classes Destroyed 13 | . 2 . 5 3 2 . 1 Worker 5 | . . . 1 . 4 . . Builder 1 | . . . . 1 . . . Hauler 5 | . . . 3 2 . . . Recycler 6 | . . . . . 6 . . Operator 1 | . 1 . . . . . . Watcher 1 | . . . 1 . . . . Swarmer 8 | . . . . 2 4 . 2 Grunt 32 | . 2 3 6 9 12 . . Brawler 1 | . . . 1 . . . . Sentry 10 | . . . 2 5 2 . 1 Hunter 3 | . . . . 2 1 . . Programmer 2 | . . . . . 2 . . Assembled 3 | . . . . . . . 3 Best Kill Streak 5 | . 2 3 4 5 5 . 3 Combat Bots Only 5 | . 1 3 3 5 4 . 3 Max Kills in Single Turn 2 | . 1 1 1 1 2 . 1 Gunslinging . | . . . . . . . . Exploded . | . . . . . . . . Melee . | . . . . . . . . Uniques/NPCs Destroyed . | . . . . . . . . Combat | -11 -10 -9 -9 -8 -7 -6 -5 -------- Run | Yrd Mat Mat Sto Mat Fac Fac Fac Hostile Shots Fired 578 | . 19 20 34 134 176 . 195 Missed 184 | . 4 4 11 35 53 . 77 Hits 394 | . 15 16 23 99 123 . 118 Melee 3 | . . . . 3 . . . Projectile 391 | . 15 16 23 96 123 . 118 AOE 27 | . . . . . . . 27 Critical Strikes 16 | . 1 . . 7 7 . 1 Part Disruptions 1 | . . . . . . . 1 Damage Taken 7311 | . 236 174 295 1454 1785 69 3298 Core 1695 | . 40 12 66 211 352 . 1014 Absorbed by Shields . | . . . . . . . . Core Remaining (%) 79 | 100 84 . 80 61 49 100 . Volleys Fired 205 | . 16 11 37 55 74 . 12 Largest 3 | . 2 2 2 2 2 . 3 Hottest 235 | . 90 106 136 136 149 . 235 Shots Fired 403 | . 24 22 74 110 141 . 32 Gun 263 | . 24 22 66 22 118 . 11 Cannon 140 | . . . 8 88 23 . 21 Launcher . | . . . . . . . . Special . | . . . . . . . . Kinetic . | . . . . . . . . Thermal 362 | . 16 22 74 106 125 . 19 Explosive . | . . . . . . . . Electromagnetic 41 | . 8 . . 4 16 . 13 Robot Hit Streak 25 | . 4 5 9 25 13 . 11 Robot Miss Streak 9 | . 2 2 3 5 9 . 4 Penetration Max . | . . . . . . . . Secondary Targets 3 | . . . 1 . 2 . . Max Gunslinging Chain 1 | . . . 1 . 1 . . Shots Hit Robots 273 | . 14 13 58 73 97 . 18 Core Hits 142 | . 6 4 24 34 67 . 7 Critical Kills 1 | . . . . 1 . . . Critical Parts Destroyed . | . . . . . . . . Critical Strikes 13 | . 1 2 4 2 3 . 1 Burn 11 | . 1 2 4 1 3 . . Meltdown 1 | . . . . 1 . . . Corrupt 1 | . . . . . . . 1 Melee Attacks . | . . . . . . . . Impact . | . . . . . . . . Slashing . | . . . . . . . . Piercing . | . . . . . . . . Sneak Attacks . | . . . . . . . . Combat Hostiles . | . . . . . . . . Follow-up Attacks . | . . . . . . . . Damage Inflicted 5395 | . 175 189 849 1560 2117 . 505 Guns 3161 | . 175 189 705 276 1690 . 126 Cannons 2202 | . . . 144 1277 427 . 354 Explosions . | . . . . . . . . Melee . | . . . . . . . . Ramming 32 | . . . . 7 . . 25 Kinetic . | . . . . . . . . Thermal 4968 | . 121 189 849 1497 1989 . 323 Explosive . | . . . . . . . . Electromagnetic 395 | . 54 . . 56 128 . 157 Impact . | . . . . . . . . Slashing . | . . . . . . . . Piercing . | . . . . . . . . Highest Corruption 8 | . . . . . 5 . 8 Average Corruption 4 | . . . . . 4 . 2 Corruption Purged . | . . . . . . . . Corruption Blocked . | . . . . . . . . Effects 27 | . . . . . 23 . 4 Message Errors 6 | . . . . . 5 . 1 Matter Fused 7 | . . . . . 6 . 1 Heat Flow Errors 3 | . . . . . 1 . 2 Energy Discharges 2 | . . . . . 2 . . Data Loss (minor) 6 | . . . . . 6 . . Data Loss (major) 2 | . . . . . 2 . . Misfires 1 | . . . . . 1 . . Overload Shots . | . . . . . . . . Overflow Damage . | . . . . . . . . Projectiles . | . . . . . . . . Explosions . | . . . . . . . . Melee . | . . . . . . . . Knockbacks . | . . . . . . . . Impact . | . . . . . . . . Kinetic . | . . . . . . . . Secondary . | . . . . . . . . Self-Inflicted Damage 11 | . . . . . . . 11 Shots . | . . . . . . . . Rammed 8 | . . . . . . . 8 Targets Rammed 15 | . . . 1 6 . . 8 Kicked 7 | . . . 1 6 . . . Crushed . | . . . . . . . . Highest Temperature 575 | . 366 466 486 342 575 . 503 Average Temperature 154 | . 211 246 110 103 164 . 201 Received Heat Transfer 1372 | . 147 96 138 306 576 . 109 Effects 34 | . 1 3 2 1 19 . 8 Shutdowns 11 | . . 1 1 1 5 . 3 Energy Bleed 3 | . . 1 1 . 1 . . Interference 8 | . 1 . . . 3 . 4 Matter Decay 1 | . . . . . 1 . . Short Circuit 4 | . . 1 . . 3 . . Damage (minor) 3 | . . . . . 2 . 1 Damage (major) 4 | . . . . . 4 . . Siege Activations . | . . . . . . . . Martial Activations . | . . . . . . . . Shielding Activations . | . . . . . . . . Robots Disrupted . | . . . . . . . . Combat Hostiles . | . . . . . . . . Robots Corrupted . | . . . . . . . . Combat Hostiles . | . . . . . . . . Parts Fried . | . . . . . . . . Impact Corruptions . | . . . . . . . . Robots Melted 5 | . . 1 . 2 1 . 1 Combat Hostiles 5 | . . 1 . 2 1 . 1 Parts Melted 27 | . . 1 8 5 11 . 2 Heat Transferred 10619 | . 420 666 2479 2701 3818 . 535 Parts Sabotaged . | . . . . . . . . Parts Stolen . | . . . . . . . . Parts Stripped . | . . . . . . . . Power Chain Reactions . | . . . . . . . . Alert | -11 -10 -9 -9 -8 -7 -6 -5 ------- Run | Yrd Mat Mat Sto Mat Fac Fac Fac Maximum Alert Level . | . . . . . . . . Low Security (%) 100 | 100 100 100 100 100 100 100 100 Level 1 . | . . . . . . . . Level 2 . | . . . . . . . . Level 3 . | . . . . . . . . Level 4 . | . . . . . . . . Level 5 . | . . . . . . . . High Security . | . . . . . . . . Max Security . | . . . . . . . . Peak Influence 177 | . 50 50 78 176 177 63 109 Initial 63 | . . 18 8 29 34 63 1 Average 48 | . 18 18 25 76 63 35 12 Influence Increases 1842 | . 95 60 309 519 638 . 221 Destroy 0b10 Robot/C 1120 | . 40 60 180 360 420 . 60 Destroy 0b10 Robot/NC 95 | . 5 . 25 15 50 . . Destroy Leader 272 | . 20 . 48 94 90 . 20 Trap Triggered on 0b10 10 | . . . 10 . . . . Disable Machine 15 | . . . . 15 . . . Destroy Structure 15 | . . . 1 5 3 . 6 Lose Combat Pursuer 315 | . 30 . 45 30 75 . 135 Influence Decreases 1743 | . 50 85 259 513 584 127 125 Entered New Map 191 | . . 27 12 41 42 67 2 Time Decay 1183 | . 40 58 210 352 380 50 93 Lost Part 332 | . 10 . . 120 162 10 30 Purge Threat 37 | . . . 37 . . . . Squads Dispatched 12 | . 1 . . 4 4 . 3 Investigation . | . . . . . . . . Extermination 3 | . . . . . 2 . 1 Reinforcement 8 | . 1 . . 3 2 . 2 Assault . | . . . . . . . . Garrison 1 | . . . . 1 . . . Intercept . | . . . . . . . . Searches Triggered . | . . . . . . . . Construction Impeded . | . . . . . . . . Haulers Reinforced 1 | . . . . . . . 1 Active Scanning Responses . | . . . . . . . . Cargo Convoy Interrupts . | . . . . . . . . Stealth | -11 -10 -9 -9 -8 -7 -6 -5 --------- Run | Yrd Mat Mat Sto Mat Fac Fac Fac Distress Signals 10 | . 2 . 1 3 4 . . Communications Jammed . | . . . . . . . . Distress Signals . | . . . . . . . . Times Spotted 147 | . 6 3 13 38 34 5 48 Peak Tracking Total 17 | . 5 3 3 8 6 5 17 Tactical Retreats 12 | . 2 . 2 2 3 . 3 Traps | -11 -10 -9 -9 -8 -7 -6 -5 ------- Run | Yrd Mat Mat Sto Mat Fac Fac Fac Traps Triggered 9 | . 1 . 1 3 2 1 1 Indirectly . | . . . . . . . . Trap Hack Attempts . | . . . . . . . . Triggered . | . . . . . . . . Disarmed . | . . . . . . . . Reprogrammed 3 | . . . 3 . . . . Reused 1 | . . . 1 . . . . Traps Extracted . | . . . . . . . . Installed . | . . . . . . . . Triggered 1 | . . . 1 . . . . Machines | -11 -10 -9 -9 -8 -7 -6 -5 ---------- Run | Yrd Mat Mat Sto Mat Fac Fac Fac Machines Disabled 1 | . . . . 1 . . . Max in Single Turn 1 | . . . . 1 . . . Machines Repaired . | . . . . . . . . Machines Dismantled . | . . . . . . . . Machines Sabotaged . | . . . . . . . . Overloaded Fab Kills . | . . . . . . . . Hacking | -11 -10 -9 -9 -8 -7 -6 -5 --------- Run | Yrd Mat Mat Sto Mat Fac Fac Fac Machines Accessed 4 | . . . 4 . . . . Terminals 4 | . . . 4 . . . . Fabricators . | . . . . . . . . Repair Stations . | . . . . . . . . Recycling Units . | . . . . . . . . Scanalyzers . | . . . . . . . . Garrison Access . | . . . . . . . . Total Hacks 8 | . . . 8 . . . . Successful 4 | . . . 4 . . . . Failed 4 | . . . 4 . . . . Catastrophic . | . . . . . . . . Database Lockouts . | . . . . . . . . Manual . | . . . . . . . . Terminals 8 | . . . 8 . . . . Fabricators . | . . . . . . . . Repair Stations . | . . . . . . . . Recycling Units . | . . . . . . . . Scanalyzers . | . . . . . . . . Garrison Access . | . . . . . . . . Terminal Hacks 4 | . . . 4 . . . . Open Door 2 | . . . 2 . . . . Unreport Threat 1 | . . . 1 . . . . Reprogram Traps 1 | . . . 1 . . . . Fabricator Hacks . | . . . . . . . . Repair Station Hacks . | . . . . . . . . Recycling Unit Hacks . | . . . . . . . . Scanalyzer . | . . . . . . . . Garrison Access Hacks . | . . . . . . . . Unauthorized Hacks . | . . . . . . . . Terminals . | . . . . . . . . Fabricators . | . . . . . . . . Repair Stations . | . . . . . . . . Recycling Units . | . . . . . . . . Scanalyzers . | . . . . . . . . Garrison Access . | . . . . . . . . Data Cores Recovered . | . . . . . . . . Used . | . . . . . . . . Hacking Detections 2 | . . . 2 . . . . Full Trace Events . | . . . . . . . . Feedback Events . | . . . . . . . . Feedback Blocked . | . . . . . . . . Robot Schematics Acquired . | . . . . . . . . Robots Built . | . . . . . . . . Authchips . | . . . . . . . . Time . | . . . . . . . . Total Robot Build Rating . | . . . . . . . . Part Schematics Acquired . | . . . . . . . . Parts Built . | . . . . . . . . Authchips . | . . . . . . . . Time . | . . . . . . . . Total Part Build Rating . | . . . . . . . . Part Studies Acquired . | . . . . . . . . Parts Repaired . | . . . . . . . . Time . | . . . . . . . . Parts Recycled . | . . . . . . . . Recycled Matter . | . . . . . . . . Retrieved Matter . | . . . . . . . . Retrieved Components . | . . . . . . . . Parts Scanalyzed . | . . . . . . . . Part Schematics Acquired . | . . . . . . . . Parts Damaged . | . . . . . . . . Bothacking | -11 -10 -9 -9 -8 -7 -6 -5 ------------ Run | Yrd Mat Mat Sto Mat Fac Fac Fac Used RIF Installer . | . . . . . . . . Robots Hacked . | . . . . . . . . Non-combat . | . . . . . . . . Combat . | . . . . . . . . Robot Hacks Applied . | . . . . . . . . Relay Couplers Released . | . . . . . . . . Fabnet Peak Effective % . | . . . . . . . . Robots Rewired . | . . . . . . . . Allies Hacked . | . . . . . . . . Hacks Repelled . | . . . . . . . . Allies | -11 -10 -9 -9 -8 -7 -6 -5 -------- Run | Yrd Mat Mat Sto Mat Fac Fac Fac Total Allies . | . . . . . . . . Largest Group . | . . . . . . . . Highest-Rated Group . | . . . . . . . . Highest-Rated Ally . | . . . . . . . . Total Orders . | . . . . . . . . Ally Attacks . | . . . . . . . . Total Damage . | . . . . . . . . Kills . | . . . . . . . . Allies Corrupted . | . . . . . . . . Allies Melted . | . . . . . . . . Intel | -11 -10 -9 -9 -8 -7 -6 -5 ------- Run | Yrd Mat Mat Sto Mat Fac Fac Fac Active Infowar (turns) . | . . . . . . . . Robot Analysis Total . | . . . . . . . . Derelict Logs Recovered . | . . . . . . . . Drone Launches . | . . . . . . . . Drone Recoveries . | . . . . . . . . Exploration | -11 -10 -9 -9 -8 -7 -6 -5 ------------- Run | Yrd Mat Mat Sto Mat Fac Fac Fac Turns Passed 3510 | 47 147 166 573 829 1209 112 427 Spaces Moved 1964 | 32 79 93 249 409 664 79 359 Core 188 | 32 . . . . 13 . 143 Treads . | . . . . . . . . Legs 1693 | . 79 93 249 409 568 79 216 Wheels 83 | . . . . . 83 . . Hover . | . . . . . . . . Flight . | . . . . . . . . Fastest Speed 50 | 50 120 120 120 90 80 122 50 Average Speed 114 | 121 120 120 120 118 117 122 97 Slowest Speed 350 | 150 120 120 120 120 350 122 135 Overloaded Moves . | . . . . . . . . Propulsion Burnouts . | . . . . . . . . Robots Hopped . | . . . . . . . . Potential Cave-ins . | . . . . . . . . Cave-ins Triggered . | . . . . . . . . Exploration Rate (%) 22 | 4 25 8 44 50 29 2 17 Regions Visited 7 Branch Regions 1 Pre-discovered Areas . | . . . . . . . . Known Exits Taken . | . . . . . . . . Unknown Exits Taken 7 | 1 1 1 1 1 1 1 . Scrap Searched . | . . . . . . . . Spaces Dug . | . . . . . . . . Terrain Destroyed 7 | . . . . 4 . . 3 Melee . | . . . . . . . . Projectile 7 | . . . . 4 . . 3 AOE . | . . . . . . . . Terrain Rammed . | . . . . . . . . Walls Destroyed . | . . . . . . . . Machines Disabled . | . . . . . . . . Actions | -11 -10 -9 -9 -8 -7 -6 -5 --------- Run | Yrd Mat Mat Sto Mat Fac Fac Fac Total 2819 | 40 107 126 449 642 946 96 413 Wait 423 | . 3 . 143 133 129 . 15 Move 1957 | 31 78 92 248 408 663 78 359 Hop . | . . . . . . . . Pick Up 80 | 6 5 7 8 12 28 8 6 Fast Attach 11 | . . . 1 5 3 . 2 Attach 57 | 3 5 3 1 8 26 7 4 Detach 1 | . . . . . 1 . . Swap 29 | . . 7 4 7 9 . 2 Drop 36 | . . 6 6 8 8 3 5 Fire 205 | . 16 11 37 55 74 . 12 Melee . | . . . . . . . . Ram 8 | . . . . . . . 8 Kick 7 | . . . 1 6 . . . Crush . | . . . . . . . . Escape Stasis 5 | . . . . . 5 . . Rewire . | . . . . . . . . Trap . | . . . . . . . . Miscellaneous . | . . . . . . . . Route ------- -11/Scrapyard -10/Materials -9/Materials -9/Storage -8/Materials -7/Factory -6/Factory -5/Factory History --------- Turn | Location | Event 17 | -11/Scrapyard | Discovered new exit (range 14) 48 | -11/Scrapyard | Entered Materials 183 | -10/Materials | Discovered new exit (range 11) 195 | -10/Materials | Entered another Materials area 195 | -9/Materials | Evolved 2 slots: Propulsion x2 196 | -9/Materials | Discovered new exit (range 8) 301 | -9/Materials | Build established: Mutant 361 | -9/Materials | Entered Storage 869 | -9/Storage | Discovered new exit (range 16) 934 | -9/Storage | Entered Materials 934 | -8/Materials | Evolved 2 slots: Power x1, Utility x1 1230 | -8/Materials | Build established: Scavenger-Mutant 1375 | -8/Materials | Lost 4 parts (2p1n1u) 1562 | -8/Materials | Build established: Mutant 1740 | -8/Materials | Discovered new exit (range 3) 1752 | -8/Materials | Garrison activated, responded to threat 1763 | -8/Materials | Entered Factory 1763 | -7/Factory | Evolved 2 slots: Utility x2 1793 | -7/Factory | Lost 8 parts (2p3n1u2w) 2089 | -7/Factory | Lost 4 parts (1p1n1u1w) 2423 | -7/Factory | Lost 5 parts (2p1n1u1w) 2615 | -7/Factory | Lost 6 parts (2p3n1u) 2742 | -7/Factory | Core integrity fell below 50% 2832 | -7/Factory | Lost 3 parts (1p1n1w) 2895 | -7/Factory | Discovered new exit (range 16) 2902 | -7/Factory | Build established: Scavenger-Mutant 2972 | -7/Factory | Entered another Factory area 2972 | -6/Factory | Evolved 2 slots: Utility x1, Weapon x1 3031 | -6/Factory | Discovered new exit (range 16) 3084 | -6/Factory | Entered another Factory area 3084 | -5/Factory | Evolved 2 slots: Power x1, Utility x1 3477 | -5/Factory | Core integrity fell below 50% 3484 | -5/Factory | Lost 11 parts (4p2n1u4w) 3497 | -5/Factory | Core integrity fell below 20% 3511 | -5/Factory | Destroyed by S-27 Virus with Autogun Last Messages --------------- U-05 Engineer works on Construction Platform. Slammed into K-01 Serf. Slammed into T-07 Excavator. Destabilizing: Core damaged (-10). Slammed into T-07 Excavator. Slammed into K-01 Serf. Destabilizing: Core damaged (-30). U-05 Engineer works on Construction Platform. K-01 Serf collects debris. U-05 Engineer works on Construction Platform. ZSBTZ V,IQBHZ=M